[Event "Titled Tuesday Blitz January 25 2022"]
[White "FGHSMN"]
[Black "Putnam, Liam"]
[BlackFideId "30938279"]
[WhiteElo "2710"]
[BlackElo "2035"]
[Result "1-0"]
[Round "08"]
[TimeControl "180+1"]
[Date "2022.01.26"]
[WhiteClock "0:00:26"]
[BlackClock "0:00:10"]

1. b3 {[%clk 0:03:00]}  e5 {[%clk 0:02:55]} 2. Bb2 {[%clk 0:03:00]}  Nc6 {[%clk 0:02:56]} 3. c4 {[%clk 0:03:01]}  Nf6 {[%clk 0:02:52]} 4. e3 {[%clk 0:03:01]}  d5 {[%clk 0:02:45]} 5. cxd5 {[%clk 0:03:00]}  Nxd5 {[%clk 0:02:46]} 6. a3 {[%clk 0:03:01]}  Bd6 {[%clk 0:02:46]} 7. d3 {[%clk 0:03:00]}  O-O {[%clk 0:02:45]} 8. Nd2 {[%clk 0:02:58]}  Qe7 {[%clk 0:02:34]} 9. Ngf3 {[%clk 0:02:56]}  f5 {[%clk 0:02:33]} 10. Qc2 {[%clk 0:02:50]}  Kh8 {[%clk 0:02:21]} 11. Be2 {[%clk 0:02:46]}  Bd7 {[%clk 0:02:13]} 12. Nc4 {[%clk 0:02:39]}  Rae8 {[%clk 0:02:11]} 13. O-O {[%clk 0:02:37]}  b5 {[%clk 0:01:54]} 14. Ncd2 {[%clk 0:02:34]}  e4 {[%clk 0:01:53]} 15. dxe4 {[%clk 0:02:34]}  fxe4 {[%clk 0:01:53]} 16. Nd4 {[%clk 0:02:34]}  Nxd4 {[%clk 0:01:52]} 17. Bxd4 {[%clk 0:02:35]}  c5 {[%clk 0:01:52]} 18. Bb2 {[%clk 0:02:31]}  Bc6 {[%clk 0:01:43]} 19. Rad1 {[%clk 0:01:56]}  a6 {[%clk 0:01:36]} 20. g3 {[%clk 0:00:57]}  Rf7 {[%clk 0:01:32]} 21. Bh5 {[%clk 0:00:55]}  Qe6 {[%clk 0:00:33]} 22. Qxe4 {[%clk 0:00:38]}  Qh6 {[%clk 0:00:19]} 23. Bxf7 {[%clk 0:00:26]}  Rxe4 {[%clk 0:00:18]} 24. Nxe4 {[%clk 0:00:27]}  c4 {[%clk 0:00:10]} 25. Bxd5 {[%clk 0:00:26]} 1-0


[Site "https://www.chess.com"]

[Event "Titled Tuesday Blitz January 25 2022"]
[White "Gaehwiler, Gabriel"]
[Black "Janaszak, Dawid"]
[WhiteFideId "1314530"]
[BlackFideId "1119206"]
[WhiteElo "2383"]
[BlackElo "2199"]
[Result "0-1"]
[Round "08"]
[TimeControl "180+1"]
[Date "2022.01.26"]
[WhiteClock "0:00:02"]
[BlackClock "0:00:23"]

1. e4 {[%clk 0:03:00]}  c5 {[%clk 0:02:59]} 2. Nf3 {[%clk 0:03:00]}  Nc6 {[%clk 0:02:58]} 3. d4 {[%clk 0:03:00]}  cxd4 {[%clk 0:02:59]} 4. Nxd4 {[%clk 0:03:01]}  g6 {[%clk 0:02:59]} 5. Nc3 {[%clk 0:02:59]}  Bg7 {[%clk 0:02:59]} 6. Be3 {[%clk 0:02:59]}  Nf6 {[%clk 0:03:00]} 7. Bc4 {[%clk 0:02:59]}  O-O {[%clk 0:03:00]} 8. Bb3 {[%clk 0:03:00]}  Re8 {[%clk 0:03:00]} 9. h3 {[%clk 0:02:51]}  d6 {[%clk 0:02:59]} 10. O-O {[%clk 0:02:50]}  Na5 {[%clk 0:02:59]} 11. Qd2 {[%clk 0:02:42]}  b6 {[%clk 0:02:58]} 12. Rae1 {[%clk 0:02:38]}  Bb7 {[%clk 0:02:56]} 13. Bg5 {[%clk 0:02:36]}  Nxb3 {[%clk 0:02:45]} 14. axb3 {[%clk 0:02:35]}  Rc8 {[%clk 0:02:43]} 15. Re3 {[%clk 0:02:14]}  Rxc3 {[%clk 0:02:22]} 16. bxc3 {[%clk 0:01:10]}  Nxe4 {[%clk 0:02:21]} 17. Rxe4 {[%clk 0:01:11]}  Bxe4 {[%clk 0:02:22]} 18. Re1 {[%clk 0:01:12]}  Bb7 {[%clk 0:02:16]} 19. Bh6 {[%clk 0:01:08]}  Bh8 {[%clk 0:02:12]} 20. Nf5 {[%clk 0:00:54]}  Qd7 {[%clk 0:01:40]} 21. Ne3 {[%clk 0:00:41]}  Qc6 {[%clk 0:01:38]} 22. c4 {[%clk 0:00:37]}  e6 {[%clk 0:01:38]} 23. f3 {[%clk 0:00:26]}  d5 {[%clk 0:01:32]} 24. cxd5 {[%clk 0:00:15]}  exd5 {[%clk 0:01:32]} 25. Ng4 {[%clk 0:00:16]}  Re6 {[%clk 0:01:18]} 26. Bf4 {[%clk 0:00:12]}  Qe8 {[%clk 0:01:10]} 27. Rxe6 {[%clk 0:00:09]}  Qxe6 {[%clk 0:01:11]} 28. Qb4 {[%clk 0:00:06]}  h5 {[%clk 0:01:07]} 29. Nf2 {[%clk 0:00:05]}  Bg7 {[%clk 0:01:02]} 30. Nd3 {[%clk 0:00:05]}  Qe2 {[%clk 0:00:56]} 31. Qd2 {[%clk 0:00:04]}  Bd4+ {[%clk 0:00:54]} 32. Kh2 {[%clk 0:00:04]}  Qf1 {[%clk 0:00:54]} 33. Be3 {[%clk 0:00:04]}  Bf6 {[%clk 0:00:50]} 34. Qf2 {[%clk 0:00:04]}  Qxf2 {[%clk 0:00:48]} 35. Bxf2 {[%clk 0:00:05]}  Kf8 {[%clk 0:00:46]} 36. Bg3 {[%clk 0:00:05]}  Ke7 {[%clk 0:00:43]} 37. Bb8 {[%clk 0:00:05]}  a6 {[%clk 0:00:43]} 38. Kg1 {[%clk 0:00:05]}  Kd7 {[%clk 0:00:41]} 39. Kf2 {[%clk 0:00:05]}  Bd4+ {[%clk 0:00:40]} 40. Ke2 {[%clk 0:00:05]}  a5 {[%clk 0:00:39]} 41. Be5 {[%clk 0:00:05]}  Bg1 {[%clk 0:00:38]} 42. Bc3 {[%clk 0:00:04]}  d4 {[%clk 0:00:36]} 43. Bd2 {[%clk 0:00:04]}  Bh2 {[%clk 0:00:34]} 44. Kf2 {[%clk 0:00:02]}  h4 {[%clk 0:00:33]} 45. Bf4 {[%clk 0:00:02]}  Bxf4 {[%clk 0:00:32]} 46. Nxf4 {[%clk 0:00:03]}  Kd6 {[%clk 0:00:31]} 47. Nd3 {[%clk 0:00:03]}  Ba6 {[%clk 0:00:30]} 48. Nb2 {[%clk 0:00:03]}  b5 {[%clk 0:00:30]} 49. Ke1 {[%clk 0:00:04]}  Bc8 {[%clk 0:00:24]} 50. Kd2 {[%clk 0:00:04]}  Bf5 {[%clk 0:00:24]} 51. Nd1 {[%clk 0:00:01]}  Ke5 {[%clk 0:00:23]} 52. Ne3 {[%clk 0:00:01]}  dxe3+ {[%clk 0:00:23]} 53. Kxe3 {[%clk 0:00:02]}  Bxc2 {[%clk 0:00:23]} 0-1


[Site "https://www.chess.com"]

[Event "Titled Tuesday Blitz January 25 2022"]
[White "Gnechko, Ruslan"]
[Black "Papasimakopoulos, Alexandros"]
[WhiteFideId "14135868"]
[BlackFideId "4244125"]
[WhiteElo "2289"]
[BlackElo "2340"]
[Result "1-0"]
[Round "08"]
[TimeControl "180+1"]
[Date "2022.01.26"]
[WhiteClock "0:02:12"]
[BlackClock "0:01:04"]

1. e4 {[%clk 0:03:00]}  e6 {[%clk 0:02:55]} 2. d4 {[%clk 0:03:00]}  d5 {[%clk 0:02:54]} 3. Nc3 {[%clk 0:03:00]}  Bb4 {[%clk 0:02:53]} 4. Qd3 {[%clk 0:02:57]}  dxe4 {[%clk 0:02:49]} 5. Qxe4 {[%clk 0:02:57]}  Nf6 {[%clk 0:02:25]} 6. Qh4 {[%clk 0:02:57]}  Nc6 {[%clk 0:02:24]} 7. Nf3 {[%clk 0:02:56]}  Ne7 {[%clk 0:02:23]} 8. Bd3 {[%clk 0:02:54]}  Nf5 {[%clk 0:02:21]} 9. Bxf5 {[%clk 0:02:54]}  exf5 {[%clk 0:02:22]} 10. O-O {[%clk 0:02:53]}  O-O {[%clk 0:02:15]} 11. Bg5 {[%clk 0:02:49]}  Be7 {[%clk 0:02:13]} 12. Rfe1 {[%clk 0:02:49]}  h6 {[%clk 0:01:51]} 13. Rxe7 {[%clk 0:02:46]}  Qxe7 {[%clk 0:01:26]} 14. Nd5 {[%clk 0:02:42]}  Qe4 {[%clk 0:01:18]} 15. Nxf6+ {[%clk 0:02:26]}  gxf6 {[%clk 0:01:18]} 16. Qxh6 {[%clk 0:02:17]}  fxg5 {[%clk 0:01:18]} 17. Nxg5 {[%clk 0:02:17]}  f4 {[%clk 0:01:05]} 18. Nxe4 {[%clk 0:02:16]}  f5 {[%clk 0:01:05]} 19. Qg6+ {[%clk 0:02:12]}  Kh8 {[%clk 0:01:04]} 20. Ng5 {[%clk 0:02:12]} 1-0


[Site "https://www.chess.com"]

[Event "Titled Tuesday Blitz January 25 2022"]
[White "Guseva, Marina"]
[Black "Kucuksari, Kaan"]
[WhiteFideId "4149351"]
[BlackFideId "6380166"]
[WhiteElo "2232"]
[BlackElo "2305"]
[Result "0-1"]
[Round "08"]
[TimeControl "180+1"]
[Date "2022.01.26"]
[WhiteClock "0:00:31"]
[BlackClock "0:00:41"]

1. d4 {[%clk 0:03:00]}  f5 {[%clk 0:02:59]} 2. c4 {[%clk 0:03:00]}  Nf6 {[%clk 0:02:59]} 3. g3 {[%clk 0:03:00]}  g6 {[%clk 0:03:00]} 4. Bg2 {[%clk 0:03:00]}  Bg7 {[%clk 0:03:00]} 5. Nf3 {[%clk 0:03:00]}  d6 {[%clk 0:03:01]} 6. O-O {[%clk 0:03:00]}  O-O {[%clk 0:03:02]} 7. Nc3 {[%clk 0:03:00]}  Qe8 {[%clk 0:03:02]} 8. Re1 {[%clk 0:02:57]}  Qf7 {[%clk 0:03:01]} 9. e4 {[%clk 0:02:56]}  fxe4 {[%clk 0:02:59]} 10. Nxe4 {[%clk 0:02:56]}  Nxe4 {[%clk 0:02:56]} 11. Rxe4 {[%clk 0:02:53]}  Nc6 {[%clk 0:02:57]} 12. Rf4 {[%clk 0:02:51]}  Qe8 {[%clk 0:02:56]} 13. Rxf8+ {[%clk 0:02:30]}  Qxf8 {[%clk 0:02:57]} 14. d5 {[%clk 0:02:30]}  Ne5 {[%clk 0:02:57]} 15. Nxe5 {[%clk 0:02:29]}  Bxe5 {[%clk 0:02:58]} 16. a4 {[%clk 0:02:29]}  Bd7 {[%clk 0:02:49]} 17. a5 {[%clk 0:02:28]}  Qf6 {[%clk 0:02:47]} 18. Qb3 {[%clk 0:02:16]}  Rf8 {[%clk 0:02:43]} 19. Be3 {[%clk 0:02:15]}  Bxb2 {[%clk 0:02:28]} 20. Ra2 {[%clk 0:01:51]}  Bd4 {[%clk 0:02:24]} 21. Qxb7 {[%clk 0:01:48]}  Bxe3 {[%clk 0:02:21]} 22. fxe3 {[%clk 0:01:48]}  Ba4 {[%clk 0:02:06]} 23. Qb4 {[%clk 0:01:32]}  Bc2 {[%clk 0:01:43]} 24. Qe1 {[%clk 0:01:04]}  Bb3 {[%clk 0:01:43]} 25. Ra3 {[%clk 0:00:52]}  Bxc4 {[%clk 0:01:43]} 26. Rc3 {[%clk 0:00:52]}  Bb5 {[%clk 0:01:13]} 27. Rxc7 {[%clk 0:00:51]}  a6 {[%clk 0:01:14]} 28. Bh3 {[%clk 0:00:35]}  h5 {[%clk 0:00:43]} 29. Be6+ {[%clk 0:00:33]}  Kh7 {[%clk 0:00:42]} 30. Qc3 {[%clk 0:00:31]}  Qf1# {[%clk 0:00:41]} 0-1


[Site "https://www.chess.com"]

[Event "Titled Tuesday Blitz January 25 2022"]
[White "Hirneise, Jens"]
[Black "Gunina, Valentina"]
[WhiteFideId "24614734"]
[BlackFideId "4167570"]
[WhiteElo "2323"]
[BlackElo "2465"]
[Result "0-1"]
[Round "08"]
[TimeControl "180+1"]
[Date "2022.01.26"]
[WhiteClock "0:00:03"]
[BlackClock "0:00:43"]

1. e4 {[%clk 0:03:00]}  c6 {[%clk 0:02:59]} 2. d4 {[%clk 0:02:57]}  d5 {[%clk 0:02:59]} 3. Nd2 {[%clk 0:02:54]}  dxe4 {[%clk 0:02:59]} 4. Nxe4 {[%clk 0:02:54]}  Nf6 {[%clk 0:03:00]} 5. Ng3 {[%clk 0:02:38]}  h5 {[%clk 0:02:59]} 6. h4 {[%clk 0:02:33]}  c5 {[%clk 0:02:59]} 7. Nf3 {[%clk 0:02:25]}  cxd4 {[%clk 0:02:57]} 8. Qxd4 {[%clk 0:02:22]}  Qxd4 {[%clk 0:02:53]} 9. Nxd4 {[%clk 0:02:23]}  Nc6 {[%clk 0:02:51]} 10. Nxc6 {[%clk 0:02:17]}  bxc6 {[%clk 0:02:51]} 11. Be2 {[%clk 0:02:11]}  e5 {[%clk 0:02:46]} 12. Bf3 {[%clk 0:02:08]}  Bd7 {[%clk 0:02:43]} 13. Bg5 {[%clk 0:02:09]}  Ng4 {[%clk 0:02:40]} 14. Bxg4 {[%clk 0:02:01]}  hxg4 {[%clk 0:02:40]} 15. O-O-O {[%clk 0:01:59]}  Bc5 {[%clk 0:02:37]} 16. Ne4 {[%clk 0:01:57]}  Be7 {[%clk 0:02:25]} 17. Nd6+ {[%clk 0:01:46]}  Bxd6 {[%clk 0:02:25]} 18. Rxd6 {[%clk 0:01:47]}  Bf5 {[%clk 0:02:25]} 19. Rhd1 {[%clk 0:01:39]}  O-O {[%clk 0:02:25]} 20. Rxc6 {[%clk 0:01:34]}  Be4 {[%clk 0:02:22]} 21. Rc5 {[%clk 0:01:28]}  Bxg2 {[%clk 0:02:20]} 22. Be7 {[%clk 0:01:25]}  Rfe8 {[%clk 0:02:18]} 23. Rxe5 {[%clk 0:01:25]}  Bf3 {[%clk 0:02:15]} 24. Rde1 {[%clk 0:01:20]}  f6 {[%clk 0:02:15]} 25. R5e3 {[%clk 0:01:19]}  Rec8 {[%clk 0:02:10]} 26. b3 {[%clk 0:01:16]}  a5 {[%clk 0:02:09]} 27. a4 {[%clk 0:01:14]}  Rc6 {[%clk 0:02:07]} 28. Kb2 {[%clk 0:01:13]}  Rac8 {[%clk 0:02:06]} 29. c4 {[%clk 0:01:13]}  Rb6 {[%clk 0:01:55]} 30. c5 {[%clk 0:01:10]}  Rb7 {[%clk 0:01:54]} 31. Bd6 {[%clk 0:01:07]}  Bd5 {[%clk 0:01:52]} 32. Rd1 {[%clk 0:01:06]}  Bf7 {[%clk 0:01:51]} 33. Rd4 {[%clk 0:00:57]}  f5 {[%clk 0:01:47]} 34. Ka3 {[%clk 0:00:54]}  Kh7 {[%clk 0:01:47]} 35. b4 {[%clk 0:00:54]}  axb4+ {[%clk 0:01:45]} 36. Rxb4 {[%clk 0:00:55]}  Ra7 {[%clk 0:01:44]} 37. Re7 {[%clk 0:00:51]}  Rxe7 {[%clk 0:01:38]} 38. Bxe7 {[%clk 0:00:52]}  Re8 {[%clk 0:01:38]} 39. Rb7 {[%clk 0:00:47]}  f4 {[%clk 0:01:37]} 40. Bd6 {[%clk 0:00:43]}  Bd5 {[%clk 0:01:36]} 41. Rb4 {[%clk 0:00:37]}  g3 {[%clk 0:01:34]} 42. fxg3 {[%clk 0:00:35]}  fxg3 {[%clk 0:01:35]} 43. Rg4 {[%clk 0:00:31]}  g2 {[%clk 0:01:29]} 44. c6 {[%clk 0:00:12]}  Bxc6 {[%clk 0:01:28]} 45. Bc5 {[%clk 0:00:13]}  Re1 {[%clk 0:01:21]} 46. Bd4 {[%clk 0:00:10]}  g6 {[%clk 0:01:21]} 47. a5 {[%clk 0:00:09]}  Bf3 {[%clk 0:01:16]} 48. Rg3 {[%clk 0:00:08]}  Bb7 {[%clk 0:01:12]} 49. Bb6 {[%clk 0:00:07]}  Kh6 {[%clk 0:01:12]} 50. Kb4 {[%clk 0:00:07]}  Kh5 {[%clk 0:01:11]} 51. Rg5+ {[%clk 0:00:06]}  Kh6 {[%clk 0:01:04]} 52. a6 {[%clk 0:00:06]}  Rb1+ {[%clk 0:01:00]} 53. Kc5 {[%clk 0:00:04]}  Bf3 {[%clk 0:00:45]} 54. a7 {[%clk 0:00:02]}  g1=Q+ {[%clk 0:00:43]} 55. Rxg1 {[%clk 0:00:02]}  Rxg1 {[%clk 0:00:43]} 56. Kd6 {[%clk 0:00:03]}  Rd1+ {[%clk 0:00:43]} 57. Kc7 {[%clk 0:00:03]}  Kh5 {[%clk 0:00:43]} 58. Kb8 {[%clk 0:00:03]}  Kxh4 {[%clk 0:00:43]} 0-1


[Site "https://www.chess.com"]

[Event "Titled Tuesday Blitz January 25 2022"]
[White "Hoffmann, Asa"]
[Black "Papp, Levente"]
[WhiteFideId "2001470"]
[BlackFideId "751243"]
[WhiteElo "2117"]
[BlackElo "2308"]
[Result "0-1"]
[Round "08"]
[TimeControl "180+1"]
[Date "2022.01.26"]
[WhiteClock "0:00:01"]
[BlackClock "0:00:08"]

1. d4 {[%clk 0:02:55]}  Nf6 {[%clk 0:02:59]} 2. Bg5 {[%clk 0:02:54]}  c5 {[%clk 0:02:58]} 3. d5 {[%clk 0:02:54]}  g6 {[%clk 0:02:54]} 4. Nc3 {[%clk 0:02:53]}  Bg7 {[%clk 0:02:53]} 5. e4 {[%clk 0:02:52]}  d6 {[%clk 0:02:54]} 6. f3 {[%clk 0:02:52]}  a6 {[%clk 0:02:52]} 7. a4 {[%clk 0:02:52]}  h6 {[%clk 0:02:49]} 8. Be3 {[%clk 0:02:51]}  e6 {[%clk 0:02:45]} 9. Qd2 {[%clk 0:02:46]}  exd5 {[%clk 0:02:42]} 10. exd5 {[%clk 0:02:47]}  g5 {[%clk 0:02:36]} 11. Nge2 {[%clk 0:02:42]}  Nbd7 {[%clk 0:02:24]} 12. Ng3 {[%clk 0:02:41]}  Ne5 {[%clk 0:02:24]} 13. Be2 {[%clk 0:02:40]}  O-O {[%clk 0:02:21]} 14. O-O {[%clk 0:02:33]}  Ng6 {[%clk 0:02:19]} 15. Bd3 {[%clk 0:02:26]}  Re8 {[%clk 0:02:13]} 16. Rae1 {[%clk 0:02:24]}  Qc7 {[%clk 0:02:12]} 17. Bf5 {[%clk 0:02:12]}  Bd7 {[%clk 0:02:07]} 18. Qd3 {[%clk 0:02:09]}  c4 {[%clk 0:01:41]} 19. Qd2 {[%clk 0:02:04]}  Bxf5 {[%clk 0:01:40]} 20. Nxf5 {[%clk 0:02:03]}  Qd7 {[%clk 0:01:41]} 21. Nxg7 {[%clk 0:02:02]}  Kxg7 {[%clk 0:01:42]} 22. Bd4 {[%clk 0:01:58]}  Qf5 {[%clk 0:01:21]} 23. g4 {[%clk 0:01:35]}  Qd7 {[%clk 0:01:07]} 24. h3 {[%clk 0:01:31]}  Ne5 {[%clk 0:01:03]} 25. f4 {[%clk 0:01:28]}  gxf4 {[%clk 0:01:01]} 26. Qxf4 {[%clk 0:01:28]}  Nh7 {[%clk 0:00:54]} 27. Ne4 {[%clk 0:01:22]}  Kg8 {[%clk 0:00:31]} 28. Qxh6 {[%clk 0:01:16]}  Qe7 {[%clk 0:00:21]} 29. Nxd6 {[%clk 0:00:52]}  Nf3+ {[%clk 0:00:18]} 30. Kh1 {[%clk 0:00:48]}  Nxd4 {[%clk 0:00:16]} 31. Rxe7 {[%clk 0:00:45]}  Rxe7 {[%clk 0:00:17]} 32. Nf5 {[%clk 0:00:42]}  Nxf5 {[%clk 0:00:17]} 33. gxf5 {[%clk 0:00:42]}  f6 {[%clk 0:00:10]} 34. Rg1+ {[%clk 0:00:34]}  Kh8 {[%clk 0:00:10]} 35. Qh4 {[%clk 0:00:29]}  Rae8 {[%clk 0:00:09]} 36. Qxc4 {[%clk 0:00:28]}  Ng5 {[%clk 0:00:09]} 37. h4 {[%clk 0:00:27]}  Ne4 {[%clk 0:00:09]} 38. Kh2 {[%clk 0:00:24]}  Re5 {[%clk 0:00:07]} 39. Re1 {[%clk 0:00:21]}  Nd6 {[%clk 0:00:05]} 40. Rxe5 {[%clk 0:00:19]}  Rxe5 {[%clk 0:00:06]} 41. Qc7 {[%clk 0:00:18]}  Nxf5 {[%clk 0:00:06]} 42. Qd8+ {[%clk 0:00:15]}  Kg7 {[%clk 0:00:06]} 43. Qc7+ {[%clk 0:00:14]}  Re7 {[%clk 0:00:05]} 44. Qc3 {[%clk 0:00:12]}  Rd7 {[%clk 0:00:05]} 45. d6 {[%clk 0:00:11]}  Nxd6 {[%clk 0:00:04]} 46. Qd3 {[%clk 0:00:10]}  Kf7 {[%clk 0:00:04]} 47. h5 {[%clk 0:00:10]}  Ke6 {[%clk 0:00:05]} 48. h6 {[%clk 0:00:09]}  Nf7 {[%clk 0:00:04]} 49. Qe4+ {[%clk 0:00:08]}  Ne5 {[%clk 0:00:04]} 50. h7 {[%clk 0:00:08]}  Rd8 {[%clk 0:00:05]} 51. Qh4 {[%clk 0:00:08]}  Ng6 {[%clk 0:00:03]} 52. Qh6 {[%clk 0:00:07]}  Kf7 {[%clk 0:00:04]} 53. Kg3 {[%clk 0:00:05]}  Rh8 {[%clk 0:00:05]} 54. Kf2 {[%clk 0:00:05]}  Nf8 {[%clk 0:00:05]} 55. b4 {[%clk 0:00:04]}  Rxh7 {[%clk 0:00:06]} 56. Qf4 {[%clk 0:00:03]}  Kg6 {[%clk 0:00:06]} 57. Qe4+ {[%clk 0:00:03]}  f5 {[%clk 0:00:06]} 58. Qd5 {[%clk 0:00:03]}  Kf6 {[%clk 0:00:06]} 59. c4 {[%clk 0:00:02]}  Ne6 {[%clk 0:00:06]} 60. c5 {[%clk 0:00:02]}  f4 {[%clk 0:00:07]} 61. b5 {[%clk 0:00:01]}  axb5 {[%clk 0:00:07]} 62. axb5 {[%clk 0:00:01]}  Rc7 {[%clk 0:00:08]} 63. c6 {[%clk 0:00:01]}  bxc6 {[%clk 0:00:08]} 64. bxc6 {[%clk 0:00:01]}  Ke7 {[%clk 0:00:08]} 65. Qe5 {[%clk 0:00:01]}  Rxc6 {[%clk 0:00:08]} 0-1


[Site "https://www.chess.com"]

[Event "Titled Tuesday Blitz January 25 2022"]
[White "Hoghmrtsyan, Artur"]
[Black "Rustemov, Alexander"]
[WhiteFideId "13306685"]
[BlackFideId "4119002"]
[WhiteElo "2602"]
[BlackElo "2726"]
[Result "1-0"]
[Round "08"]
[TimeControl "180+1"]
[Date "2022.01.26"]
[WhiteClock "0:00:08"]
[BlackClock "0:00:20"]

1. d4 {[%clk 0:02:56]}  d5 {[%clk 0:02:59]} 2. c4 {[%clk 0:02:56]}  dxc4 {[%clk 0:03:00]} 3. e3 {[%clk 0:02:55]}  e6 {[%clk 0:02:57]} 4. Bxc4 {[%clk 0:02:55]}  c5 {[%clk 0:02:58]} 5. Nf3 {[%clk 0:02:54]}  a6 {[%clk 0:02:58]} 6. a4 {[%clk 0:02:53]}  Nf6 {[%clk 0:02:56]} 7. O-O {[%clk 0:02:53]}  Nc6 {[%clk 0:02:56]} 8. Qe2 {[%clk 0:02:52]}  Be7 {[%clk 0:02:55]} 9. Rd1 {[%clk 0:02:52]}  O-O {[%clk 0:02:51]} 10. Nc3 {[%clk 0:02:41]}  Qc7 {[%clk 0:02:48]} 11. dxc5 {[%clk 0:02:38]}  Bxc5 {[%clk 0:02:47]} 12. h3 {[%clk 0:02:37]}  b6 {[%clk 0:02:46]} 13. e4 {[%clk 0:02:36]}  Bb7 {[%clk 0:02:43]} 14. Bg5 {[%clk 0:02:30]}  Nd7 {[%clk 0:02:40]} 15. Rac1 {[%clk 0:02:26]}  h6 {[%clk 0:02:38]} 16. Bh4 {[%clk 0:02:24]}  Nde5 {[%clk 0:02:27]} 17. Nxe5 {[%clk 0:02:21]}  Qxe5 {[%clk 0:02:25]} 18. Qg4 {[%clk 0:02:08]}  Rac8 {[%clk 0:02:09]} 19. Rd7 {[%clk 0:02:05]}  Rc7 {[%clk 0:01:48]} 20. Rcd1 {[%clk 0:01:46]}  Rxd7 {[%clk 0:01:43]} 21. Rxd7 {[%clk 0:01:45]}  Bc8 {[%clk 0:01:43]} 22. Bg3 {[%clk 0:01:36]}  Qf6 {[%clk 0:01:31]} 23. Rc7 {[%clk 0:01:14]}  Ne5 {[%clk 0:01:31]} 24. Qe2 {[%clk 0:01:14]}  Bd6 {[%clk 0:01:16]} 25. Ra7 {[%clk 0:01:11]}  Nxc4 {[%clk 0:01:15]} 26. Qxc4 {[%clk 0:01:12]}  Bxg3 {[%clk 0:01:15]} 27. fxg3 {[%clk 0:01:13]}  Qe5 {[%clk 0:00:59]} 28. Rc7 {[%clk 0:01:04]}  b5 {[%clk 0:00:53]} 29. Qc6 {[%clk 0:00:50]}  b4 {[%clk 0:00:48]} 30. Nd1 {[%clk 0:00:46]}  Qxg3 {[%clk 0:00:36]} 31. Nf2 {[%clk 0:00:31]}  Qe3 {[%clk 0:00:35]} 32. Kf1 {[%clk 0:00:26]}  Qd2 {[%clk 0:00:23]} 33. Rxc8 {[%clk 0:00:16]}  Qxb2 {[%clk 0:00:22]} 34. Rxf8+ {[%clk 0:00:12]}  Kxf8 {[%clk 0:00:23]} 35. Qc5+ {[%clk 0:00:12]}  Kg8 {[%clk 0:00:23]} 36. Nd3 {[%clk 0:00:09]}  b3 {[%clk 0:00:20]} 37. Nxb2 {[%clk 0:00:08]} 1-0


[Site "https://www.chess.com"]

[Event "Titled Tuesday Blitz January 25 2022"]
[White "Ibrahimli, Murad"]
[Black "Aradhya, Garg"]
[WhiteFideId "13410229"]
[BlackFideId "25006746"]
[WhiteElo "2109"]
[BlackElo "2169"]
[Result "0-1"]
[Round "08"]
[TimeControl "180+1"]
[Date "2022.01.26"]
[WhiteClock "0:00:06"]
[BlackClock "0:00:20"]

1. Nf3 {[%clk 0:03:00]}  d5 {[%clk 0:02:57]} 2. d4 {[%clk 0:02:58]}  Nf6 {[%clk 0:02:57]} 3. c4 {[%clk 0:02:58]}  c6 {[%clk 0:02:55]} 4. Nc3 {[%clk 0:02:58]}  dxc4 {[%clk 0:02:54]} 5. a4 {[%clk 0:02:57]}  Bf5 {[%clk 0:02:54]} 6. e3 {[%clk 0:02:55]}  e6 {[%clk 0:02:54]} 7. Bxc4 {[%clk 0:02:54]}  Bb4 {[%clk 0:02:55]} 8. O-O {[%clk 0:02:53]}  O-O {[%clk 0:02:55]} 9. Qe2 {[%clk 0:02:54]}  Bg4 {[%clk 0:02:56]} 10. Rd1 {[%clk 0:02:52]}  Nbd7 {[%clk 0:02:55]} 11. h3 {[%clk 0:02:51]}  Bh5 {[%clk 0:02:54]} 12. e4 {[%clk 0:02:43]}  h6 {[%clk 0:02:54]} 13. Bd3 {[%clk 0:02:40]}  Bg6 {[%clk 0:02:51]} 14. Bf4 {[%clk 0:02:36]}  Re8 {[%clk 0:02:29]} 15. Ne5 {[%clk 0:02:27]}  Nxe5 {[%clk 0:02:29]} 16. dxe5 {[%clk 0:02:28]}  Nd7 {[%clk 0:02:28]} 17. Bc4 {[%clk 0:02:25]}  Qe7 {[%clk 0:02:26]} 18. Bg3 {[%clk 0:02:11]}  Rad8 {[%clk 0:01:57]} 19. Kh2 {[%clk 0:02:10]}  a5 {[%clk 0:01:31]} 20. f4 {[%clk 0:01:57]}  Bxc3 {[%clk 0:01:30]} 21. bxc3 {[%clk 0:01:56]}  Nc5 {[%clk 0:01:31]} 22. Bd3 {[%clk 0:01:41]}  Rxd3 {[%clk 0:01:26]} 23. Rxd3 {[%clk 0:01:42]}  Nxd3 {[%clk 0:01:27]} 24. Qxd3 {[%clk 0:01:42]}  Rd8 {[%clk 0:01:28]} 25. Qe3 {[%clk 0:01:42]}  Qd7 {[%clk 0:01:26]} 26. Bh4 {[%clk 0:01:29]}  Qd2 {[%clk 0:01:23]} 27. Qxd2 {[%clk 0:01:09]}  Rxd2 {[%clk 0:01:24]} 28. Re1 {[%clk 0:01:09]}  b5 {[%clk 0:01:24]} 29. axb5 {[%clk 0:01:08]}  cxb5 {[%clk 0:01:25]} 30. Kg1 {[%clk 0:01:09]}  a4 {[%clk 0:01:20]} 31. Be7 {[%clk 0:01:08]}  Rc2 {[%clk 0:01:06]} 32. Bb4 {[%clk 0:01:07]}  a3 {[%clk 0:01:07]} 33. Bxa3 {[%clk 0:00:52]}  Rxc3 {[%clk 0:01:06]} 34. Bd6 {[%clk 0:00:48]}  Rc4 {[%clk 0:01:06]} 35. Rb1 {[%clk 0:00:47]}  Bxe4 {[%clk 0:01:06]} 36. Rxb5 {[%clk 0:00:47]}  Rc1+ {[%clk 0:01:06]} 37. Kf2 {[%clk 0:00:43]}  Rc2+ {[%clk 0:01:06]} 38. Ke3 {[%clk 0:00:44]}  Bxg2 {[%clk 0:01:06]} 39. h4 {[%clk 0:00:41]}  h5 {[%clk 0:01:03]} 40. Be7 {[%clk 0:00:39]}  Rc3+ {[%clk 0:00:54]} 41. Kd2 {[%clk 0:00:28]}  Rf3 {[%clk 0:00:54]} 42. Rb4 {[%clk 0:00:28]}  Kh7 {[%clk 0:00:54]} 43. Ke2 {[%clk 0:00:27]}  Rc3 {[%clk 0:00:52]} 44. Kf2 {[%clk 0:00:27]}  Bh3 {[%clk 0:00:51]} 45. Bd8 {[%clk 0:00:22]}  Bg4 {[%clk 0:00:51]} 46. Ke1 {[%clk 0:00:21]}  Kg6 {[%clk 0:00:50]} 47. Kd2 {[%clk 0:00:16]}  Rf3 {[%clk 0:00:50]} 48. Rd4 {[%clk 0:00:15]}  Kf5 {[%clk 0:00:45]} 49. Bg5 {[%clk 0:00:16]}  f6 {[%clk 0:00:38]} 50. exf6 {[%clk 0:00:16]}  gxf6 {[%clk 0:00:39]} 51. Bh6 {[%clk 0:00:17]}  Rh3 {[%clk 0:00:39]} 52. Rd8 {[%clk 0:00:13]}  Rxh4 {[%clk 0:00:36]} 53. Rf8 {[%clk 0:00:14]}  Kg6 {[%clk 0:00:36]} 54. Rxf6+ {[%clk 0:00:13]}  Kxf6 {[%clk 0:00:33]} 55. Bg5+ {[%clk 0:00:14]}  Kf5 {[%clk 0:00:33]} 56. Bxh4 {[%clk 0:00:15]}  Kxf4 {[%clk 0:00:33]} 57. Ke1 {[%clk 0:00:15]}  Kf3 {[%clk 0:00:30]} 58. Bf6 {[%clk 0:00:10]}  Bh3 {[%clk 0:00:28]} 59. Kd2 {[%clk 0:00:08]}  Bf5 {[%clk 0:00:27]} 60. Ke1 {[%clk 0:00:07]}  Bd3 {[%clk 0:00:27]} 61. Kd2 {[%clk 0:00:07]}  Ba6 {[%clk 0:00:26]} 62. Kc3 {[%clk 0:00:08]}  Kg3 {[%clk 0:00:25]} 63. Be5+ {[%clk 0:00:07]}  Kf3 {[%clk 0:00:25]} 64. Bf6 {[%clk 0:00:07]}  Kg4 {[%clk 0:00:25]} 65. Kd4 {[%clk 0:00:07]}  h4 {[%clk 0:00:25]} 66. Ke3 {[%clk 0:00:07]}  Kg3 {[%clk 0:00:22]} 67. Ke4 {[%clk 0:00:05]}  h3 {[%clk 0:00:20]} 68. Be5+ {[%clk 0:00:05]}  Kg2 {[%clk 0:00:20]} 69. Kf4 {[%clk 0:00:06]} 0-1


[Site "https://www.chess.com"]